[Event "African Individual Chess-ch Women 2024"]
[Site "Accra"]
[Date "2024.03.17"]
[Round "5.1"]
[White "February, Jesse Nikki"]
[Black "Nakabo, Peninah"]
[Result "1-0"]
[ECO "B15"]
[WhiteElo "1920"]
[BlackElo "1836"]
[Annotator "RC"]
[PlyCount "151"]
[EventDate "2024.03.13"]
[EventCountry "GHA"]
[SourceTitle "playchess.com"]
[Source "ChessBase"]
[SourceQuality "1"]
[TimeControl "5400+30"]

1. e4 {[%emt 1:31:00]} c6 {[%emt 1:31:00]} 2. d4 {[%emt 0:00:30]} d5 {[%emt 0:00:30]} 3. Nc3 {[%emt 0:00:30]} dxe4 {[%emt 0:00:30]} 4. Nxe4 {[%emt 0:00:30]} Nf6 {[%emt 0:00:30]} 5. Nxf6+ {[%emt 0:00:30]} exf6 {[%emt 0:00:30]} 6. c3 {[%emt 0:00:30]} Bd6 {[%emt 0:00:30]} 7. Bd3 {[%emt 0:00:30]} O-O {[%emt 0:00:30]} 8. Qc2 {[%emt 0:00:30]} Re8+ {[%emt 0:00:30]} 9. Ne2 {[%emt 0:00:30]} g6 {[%emt 0:00:30]} 10. Be3 {[%emt 0:00:30]} Qc7 {[%emt 0:00:30]} 11. O-O-O {[%emt 0:00:30]} b5 {[%emt 0:00:30]} 12. h4 {[%emt 0:00:30]} f5 {[%emt 0:00:30]} 13. h5 {[%emt 0:00:30]} Be6 {[%emt 0:00:30]} 14. hxg6 {[%emt 0:00:30]} fxg6 {[%emt 0:00:30]} 15. g4 {[%emt 0:00:30]} Rf8 {[%emt 0:00:30]} 16. gxf5 {[%emt 0:00:30]} Bxf5 {[%emt 0:00:30]} 17. Rdg1 {[%emt 0:00:30]} Bxd3 {[%emt 0:00:30]} 18. Qxd3 {[%emt 0:00:30]} Qf7 {[%emt 0:00:30]} 19. Rh6 {[%emt 0:00:30]} Qf5 {[%emt 0:00:30]} 20. Qxf5 {[%emt 0:00:30]} Rxf5 {[%emt 0:00:30]} 21. Rgh1 {[%emt 0:00:30]} Rf7 {[%emt 0:00:30]} 22. d5 {[%emt 0:00:30]} c5 {[%emt 0:00:30]} 23. Ng3 {[%emt 0:00:30]} Bxg3 {[%emt 0:00:30]} 24. fxg3 {[%emt 0:00:30]} Nd7 {[%emt 0:00:30]} 25. Bf4 {[%emt 0:00:30]} Re8 {[%emt 0:00:30]} 26. R6h2 {[%emt 0:00:30]} a6 {[%emt 0:00:30]} 27. Kc2 {[%emt 0:00:30]} Nf6 {[%emt 0:00:30]} 28. Rd1 {[%emt 0:00:30]} Rd7 {[%emt 0:00:30]} 29. d6 {[%emt 0:00:30]} Re6 {[%emt 0:00:30]} 30. b3 {[%emt 0:00:30]} Ne8 {[%emt 0:00:30]} 31. Rd5 {[%emt 0:00:30]} c4 {[%emt 0:00:30]} 32. bxc4 {[%emt 0:00:30]} bxc4 {[%emt 0:00:30]} 33. Rd4 {[%emt 0:00:30]} g5 {[%emt 0:00:30]} 34. Bxg5 {[%emt 0:00:30]} Nxd6 {[%emt 0:00:30]} 35. Bf4 {[%emt 0:00:30]} Kf8 {[%emt 0:00:30]} 36. a4 {[%emt 0:00:30]} Ke8 {[%emt 0:00:30]} 37. Rhd2 {[%emt 0:00:30]} Ke7 {[%emt 0:00:30]} 38. g4 {[%emt 0:00:30]} Rg6 {[%emt 0:00:30]} 39. g5 {[%emt 0:00:30]} Rd8 {[%emt 0:00:30]} 40. Rd5 {[%emt 0:00:30]} Nf7 {[%emt 0:00:30]} 41. Kb2 {[%emt 0:00:30]} Rb6+ {[%emt 0:00:30]} 42. Kc2 {[%emt 0:00:30]} Rxd5 {[%emt 0:00:30]} 43. Rxd5 {[%emt 0:00:30]} Rc6 {[%emt 0:00:30]} 44. Kd2 {[%emt 0:00:30]} Ke6 {[%emt 0:00:30]} 45. Ra5 {[%emt 0:00:30]} Nd8 {[%emt 0:00:30]} 46. Ke3 {[%emt 0:00:30]} Nb7 {[%emt 0:00:30]} 47. Re5+ {[%emt 0:00:30]} Kd7 {[%emt 0:00:30]} 48. Kd4 {[%emt 0:00:30]} Rc8 {[%emt 0:00:30]} 49. Rf5 {[%emt 0:00:30]} Ke7 {[%emt 0:00:30]} 50. Rf6 {[%emt 0:00:30]} Rf8 {[%emt 0:00:30]} 51. Rxf8 {[%emt 0:00:30]} Kxf8 {[%emt 0:00:30]} 52. Kxc4 {[%emt 0:00:30]} Ke7 {[%emt 0:00:30]} 53. Kd5 {[%emt 0:00:30]} Kd7 {[%emt 0:00:30]} 54. c4 {[%emt 0:00:30]} Nd8 {[%emt 0:00:30]} 55. Bd2 {[%emt 0:00:30]} Nc6 {[%emt 0:00:30]} 56. Kc5 {[%emt 0:00:30]} Ne5 {[%emt 0:00:30]} 57. Bc3 {[%emt 0:00:30]} Nf3 {[%emt 0:00:30]} 58. Bf6 {[%emt 0:00:30]} Kc7 {[%emt 0:00:30]} 59. Kd5 {[%emt 0:00:30]} Nd2 {[%emt 0:00:30]} 60. c5 {[%emt 0:00:30]} Nb3 {[%emt 0:00:30]} 61. Be5+ {[%emt 0:00:30]} Kc8 {[%emt 0:00:30]} 62. c6 {[%emt 0:00:30]} Nd2 {[%emt 0:00:30]} 63. Bf4 {[%emt 0:00:30]} Nf3 {[%emt 0:00:30]} 64. Kc5 {[%emt 0:00:30]} Nh4 {[%emt 0:00:30]} 65. Kb6 {[%emt 0:00:30]} Ng6 {[%emt 0:00:30]} 66. Bd6 {[%emt 0:00:30]} Nh8 {[%emt 0:00:30]} 67. Kxa6 {[%emt 0:00:30]} Nf7 {[%emt 0:00:30]} 68. Bf4 {[%emt 0:00:30]} Nd8 {[%emt 0:00:30]} 69. Kb6 {[%emt 0:00:30]} Ne6 {[%emt 0:00:30]} 70. Bd2 {[%emt 0:00:30]} Kb8 {[%emt 0:00:30]} 71. a5 {[%emt 0:00:30]} Kc8 {[%emt 0:00:30]} 72. a6 {[%emt 0:00:30]} Nc7 {[%emt 0:00:30]} 73. a7 {[%emt 0:00:30]} Nd5+ {[%emt 0:00:30]} 74. Ka5 {[%emt 0:00:30]} Nc7 {[%emt 0:00:30]} 75. Bf4 {[%emt 0:00:30]} Na8 {[%emt 0:00:30]} 76. Ka6 {[%emt 0:00:30]} 1-0

[Event "African Individual Chess-ch Women 2024"]
[Site "Accra"]
[Date "2024.03.17"]
[Round "5.2"]
[White "Wafa, Shahenda"]
[Black "Nassr, Lina"]
[Result "1-0"]
[ECO "B46"]
[WhiteElo "2083"]
[BlackElo "2080"]
[Annotator "NA RC"]
[PlyCount "81"]
[EventDate "2024.03.13"]
[EventCountry "GHA"]
[SourceTitle "playchess.com"]
[Source "ChessBase"]
[SourceQuality "1"]
[TimeControl "5400+30"]

1. e4 {[%emt 0:00:04]} c5 {[%emt 0:00:23]} 2. Nf3 {[%emt 0:00:10]} e6 {[%emt 0:00:20]} 3. d4 {[%emt 0:00:16]} cxd4 {[%emt 0:00:05]} 4. Nxd4 {[%emt 0:00:07]} Nc6 {[%emt 0:00:43]} 5. Nc3 {[%emt 0:00:24]} a6 {[%emt 0:01:07]} 6. Nxc6 {[%emt 0:00:37]} bxc6 {[%emt 0:00:13]} 7. Bd3 {[%emt 0:00:28]} d5 {[%emt 0:00:32]} 8. O-O {[%emt 0:00:32]} Nf6 {[%emt 0:00:43]} 9. Qf3 {[%emt 0:02:41]} Bd6 {[%emt 0:06:26]} 10. Re1 {[%emt 0:00:56]} Qc7 {[%emt 0:09:28]} 11. exd5 {[%emt 0:13:09]} cxd5 {[%emt 0:09:10]} 12. Nxd5 {[%emt 0:00:47]} Nxd5 {[%emt 0:07:30]} 13. Qxd5 {[%emt 0:00:11]} O-O {[%emt 0:27:11]} 14. Qh5 {[%emt 0:03:43]} g6 {[%emt 0:00:55]} 15. Qh4 {[%emt 0:02:07]} f5 {[%emt 0:05:26]} 16. Bh6 {[%emt 0:08:50]} Re8 {[%emt 0:06:08]} 17. Rad1 {[%emt 0:03:15]} Bb7 {[%emt 0:05:38]} 18. b3 {[%emt 0:12:11]} Qc6 {[%emt 0:01:47]} 19. f3 {[%emt 0:01:28]} Bc5+ {[%emt 0:05:38]} 20. Be3 {[%emt 0:09:34]} Rad8 {[%emt 0:02:40]} 21. Bxc5 {[%emt 0:02:20]} Qxc5+ {[%emt 0:00:05]} 22. Qf2 {[%emt 0:01:32]} Qa5 {[%emt 0:01:52]} 23. a4 {[%emt 0:12:16]} Bd5 {[%emt 0:02:24]} 24. Qe2 {[%emt 0:01:56]} Qc5+ {[%emt 0:01:14]} 25. Kh1 {[%emt 0:00:44]} e5 {[%emt 0:04:38]} 26. Bxa6 {[%emt 0:02:33]} e4 {[%emt 0:00:29]} 27. Rxd5 {[%emt 0:01:08]} Rxd5 {[%emt 0:00:09]} 28. Bc4 {[%emt 0:00:22]} Kf8 {[%emt 0:00:52]} 29. Bxd5 {[%emt 0:00:55]} Qxd5 {[%emt 0:00:05]} 30. Qd1 {[%emt 0:02:59]} Qc5 {[%emt 0:00:57]} 31. fxe4 {[%emt 0:01:39]} fxe4 {[%emt 0:00:29]} 32. Rf1+ {[%emt 0:01:52]} Ke7 {[%emt 0:00:40]} 33. Qg4 {[%emt 0:05:22]} Qe5 {[%emt 0:00:26]} 34. Qh4+ {[%emt 0:00:15]} Kd6 {[%emt 0:00:21]} 35. Rd1+ {[%emt 0:01:17]} Kc5 {[%emt 0:00:39]} 36. Qe1 {[%emt 0:00:30]} Kb6 {[%emt 0:00:31]} 37. Qb4+ {[%emt 0:00:10]} Kc6 {[%emt 0:00:19]} 38. Qc4+ {[%emt 0:00:21]} Kb6 {[%emt 0:00:39]} 39. a5+ {[%emt 0:00:19]} Qxa5 {[%emt 0:00:35]} 40. Rd6+ {[%emt 0:00:20]} Ka7 {[%emt 0:00:25]} 41. Qf7+ {[%emt 0:00:30]} 1-0

[Event "African Individual Chess-ch Women 2024"]
[Site "Accra"]
[Date "2024.03.17"]
[Round "5.3"]
[White "Ofowino, Toritsemuwa"]
[Black "QUICKPEN, Deborah Ebimobo-ere"]
[Result "1-0"]
[ECO "B99"]
[WhiteElo "1950"]
[BlackElo "1945"]
[Annotator "NA RC"]
[PlyCount "107"]
[EventDate "2024.03.13"]
[EventCountry "GHA"]
[SourceTitle "playchess.com"]
[Source "ChessBase"]
[SourceQuality "1"]
[TimeControl "5400+30"]

1. e4 {[%emt 0:00:20]} c5 {[%emt 0:00:42]} 2. Nf3 {[%emt 0:00:18]} d6 {[%emt 0:00:08]} 3. d4 {[%emt 0:00:23]} cxd4 {[%emt 0:00:17]} 4. Nxd4 {[%emt 0:00:09]} Nf6 {[%emt 0:00:19]} 5. Nc3 {[%emt 0:00:37]} a6 {[%emt 0:00:25]} 6. Bg5 {[%emt 0:01:12]} e6 {[%emt 0:00:35]} 7. f4 {[%emt 0:00:52]} Be7 {[%emt 0:01:19]} 8. Qf3 {[%emt 0:01:05]} Nbd7 {[%emt 0:01:12]} 9. O-O-O {[%emt 0:04:43]} Qc7 {[%emt 0:02:12]} 10. Rg1 {[%emt 0:07:28]} b5 {[%emt 0:05:53]} 11. Bxf6 {[%emt 0:01:25]} Nxf6 {[%emt 0:01:00]} 12. Bd3 {[%emt 0:10:38]} Bb7 {[%emt 0:01:43]} 13. a3 {[%emt 0:00:11]} O-O-O {[%emt 0:00:47]} 14. Kb1 {[%emt 0:02:50]} Nd7 {[%emt 0:01:57]} 15. Rge1 {[%emt 0:02:35]} Nb6 {[%emt 0:01:06]} 16. Nce2 {[%emt 0:08:37]} Kb8 {[%emt 0:02:38]} 17. Nc1 {[%emt 0:07:52]} Bf6 {[%emt 0:02:00]} 18. Ncb3 {[%emt 0:02:31]} Na4 {[%emt 0:02:08]} 19. Qe3 {[%emt 0:00:51]} Qb6 {[%emt 0:04:04]} 20. c3 {[%emt 0:02:26]} e5 {[%emt 0:04:59]} 21. fxe5 {[%emt 0:01:26]} dxe5 {[%emt 0:01:26]} 22. Nf3 {[%emt 0:04:07]} Qxe3 {[%emt 0:00:17]} 23. Rxe3 {[%emt 0:00:05]} Rd6 {[%emt 0:00:20]} 24. Bc2 {[%emt 0:00:42]} Rhd8 {[%emt 0:00:31]} 25. Rxd6 {[%emt 0:00:53]} Rxd6 {[%emt 0:00:06]} 26. Rd3 {[%emt 0:00:15]} Rxd3 {[%emt 0:00:40]} 27. Bxd3 {[%emt 0:00:05]} Kc7 {[%emt 0:00:22]} 28. Kc2 {[%emt 0:00:23]} g5 {[%emt 0:00:29]} 29. Nfd2 {[%emt 0:01:38]} Be7 {[%emt 0:01:28]} 30. Nf1 {[%emt 0:00:24]} Bc5 {[%emt 0:00:59]} 31. Nxc5 {[%emt 0:09:43]} Nxc5 {[%emt 0:00:08]} 32. Nd2 {[%emt 0:00:12]} Kd6 {[%emt 0:00:54]} 33. b4 {[%emt 0:03:39]} Ne6 {[%emt 0:00:49]} 34. c4 {[%emt 0:02:25]} Nd4+ {[%emt 0:00:45]} 35. Kc3 {[%emt 0:00:07]} Bc6 {[%emt 0:01:02]} 36. c5+ {[%emt 0:00:59]} Ke6 {[%emt 0:00:16]} 37. Nb3 {[%emt 0:01:00]} Nxb3 {[%emt 0:00:37]} 38. Kxb3 {[%emt 0:00:01]} h5 {[%emt 0:00:24]} 39. Kc3 {[%emt 0:00:15]} f5 {[%emt 0:02:03]} 40. exf5+ {[%emt 0:00:16]} Kf6 {[%emt 0:00:08]} 41. g3 {[%emt 0:00:06]} e4 {[%emt 0:00:41]} 42. Be2 {[%emt 0:00:11]} g4 {[%emt 0:00:44]} 43. Kd4 {[%emt 0:00:10]} Kxf5 {[%emt 0:00:14]} 44. Bd1 {[%emt 0:01:46]} Bb7 {[%emt 0:01:03]} 45. Bb3 {[%emt 0:01:17]} Bc6 {[%emt 0:00:23]} 46. Bf7 {[%emt 0:00:44]} Kg5 {[%emt 0:06:23]} 47. Be6 {[%emt 0:01:39]} Kf6 {[%emt 0:02:41]} 48. Bc8 {[%emt 0:00:21]} Ke7 {[%emt 0:00:10]} 49. Bf5 {[%emt 0:00:19]} e3 {[%emt 0:01:40]} 50. Kxe3 {[%emt 0:00:06]} Kf6 {[%emt 0:00:43]} 51. Bc8 {[%emt 0:00:44]} Ke7 {[%emt 0:00:14]} 52. Kf4 {[%emt 0:00:09]} Kd8 {[%emt 0:01:21]} 53. Bf5 {[%emt 0:00:09]} Be8 {[%emt 0:01:37]} 54. Kg5 {[%emt 0:00:43]} 1-0

[Event "African Individual Chess-ch Women 2024"]
[Site "Accra"]
[Date "2024.03.17"]
[Round "5.4"]
[White "Vilhete, Vania Fausto Da T."]
[Black "Paulo, Jemima"]
[Result "1-0"]
[ECO "D15"]
[WhiteElo "1829"]
[BlackElo "1946"]
[Annotator "NA RC"]
[PlyCount "101"]
[EventDate "2024.03.13"]
[EventCountry "GHA"]
[SourceTitle "playchess.com"]
[Source "ChessBase"]
[SourceQuality "1"]
[TimeControl "5400+30"]

1. d4 {[%emt 0:00:01]} Nf6 {[%emt 0:00:11]} 2. c4 {[%emt 0:00:10]} c6 {[%emt 0:00:10]} 3. Nf3 {[%emt 0:00:24]} d5 {[%emt 0:00:27]} 4. e3 {[%emt 0:02:10]} a6 {[%emt 0:00:57]} 5. Nc3 {[%emt 0:00:33]} b5 {[%emt 0:02:25]} 6. cxd5 {[%emt 0:01:32]} cxd5 {[%emt 0:00:58]} 7. Bd3 {[%emt 0:01:21]} e6 {[%emt 0:00:11]} 8. O-O {[%emt 0:00:33]} Bb7 {[%emt 0:00:07]} 9. a3 {[%emt 0:02:14]} Bd6 {[%emt 0:00:14]} 10. Re1 {[%emt 0:00:15]} Ne4 {[%emt 0:00:46]} 11. Bd2 {[%emt 0:02:48]} Nd7 {[%emt 0:00:14]} 12. Rc1 {[%emt 0:03:14]} Rc8 {[%emt 0:00:49]} 13. Nb1 {[%emt 0:08:45]} O-O {[%emt 0:00:49]} 14. Rxc8 {[%emt 0:03:00]} Qxc8 {[%emt 0:00:20]} 15. Bc1 {[%emt 0:03:25]} f5 {[%emt 0:00:36]} 16. Nfd2 {[%emt 0:01:18]} Qd8 {[%emt 0:04:38]} 17. Nf1 {[%emt 0:00:27]} e5 {[%emt 0:02:16]} 18. f3 {[%emt 0:05:16]} Ng5 {[%emt 0:00:41]} 19. dxe5 {[%emt 0:07:45]} Nxe5 {[%emt 0:00:16]} 20. Be2 {[%emt 0:00:22]} Ng6 {[%emt 0:01:26]} 21. Nc3 {[%emt 0:00:42]} Rf7 {[%emt 0:04:01]} 22. Qb3 {[%emt 0:00:42]} Qf6 {[%emt 0:03:08]} 23. Rd1 {[%emt 0:04:59]} Nh4 {[%emt 0:01:04]} 24. Ng3 {[%emt 0:08:53]} d4 {[%emt 0:09:12]} 25. Rxd4 {[%emt 0:05:58]} Bxf3 {[%emt 0:00:45]} 26. Rxh4 {[%emt 0:02:48]} Bxe2 {[%emt 0:00:07]} 27. Ncxe2 {[%emt 0:03:59]} Nf3+ {[%emt 0:02:22]} 28. gxf3 {[%emt 0:00:12]} Qxh4 {[%emt 0:00:08]} 29. Qe6 {[%emt 0:06:20]} Bxg3 {[%emt 0:02:02]} 30. hxg3 {[%emt 0:02:16]} Qd8 {[%emt 0:00:12]} 31. Qxa6 {[%emt 0:04:35]} Qd3 {[%emt 0:15:51]} 32. Qc8+ {[%emt 0:04:14]} Rf8 {[%emt 0:00:14]} 33. Qe6+ {[%emt 0:00:05]} Kh8 {[%emt 0:05:08]} 34. Kf2 {[%emt 0:00:09]} h6 {[%emt 0:00:34]} 35. Qc6 {[%emt 0:02:12]} Rf6 {[%emt 0:06:45]} 36. Qc3 {[%emt 0:00:51]} Qd1 {[%emt 0:01:44]} 37. Qe1 {[%emt 0:00:18]} Qb3 {[%emt 0:00:51]} 38. Nd4 {[%emt 0:01:03]} Qc4 {[%emt 0:00:45]} 39. Qc3 {[%emt 0:03:21]} Qd5 {[%emt 0:04:19]} 40. Qb4 {[%emt 0:02:30]} f4 {[%emt 0:03:37]} 41. exf4 {[%emt 0:06:11]} Qh5 {[%emt 0:05:06]} 42. Kg2 {[%emt 0:00:47]} Rb6 {[%emt 0:08:34]} 43. Bd2 {[%emt 0:00:00]} Qg6 {[%emt 0:00:00]} 44. Bc3 {[%emt 0:00:00]} Rf6 {[%emt 0:00:00]} 45. f5 {[%emt 0:00:00]} Qe8 {[%emt 0:00:00]} 46. Qxb5 {[%emt 0:00:00]} Qxb5 {[%emt 0:00:00]} 47. Nxb5 {[%emt 0:00:00]} Rxf5 {[%emt 0:00:00]} 48. Nd4 {[%emt 0:00:00]} Rd5 {[%emt 0:00:00]} 49. Ne6 {[%emt 0:00:00]} Kg8 {[%emt 0:00:00]} 50. Nxg7 {[%emt 0:00:00]} Kf7 {[%emt 0:00:00]} 51. g4 {[%emt 0:00:00]} 1-0

[Event "African Individual Chess-ch Women 2024"]
[Site "Accra"]
[Date "2024.03.17"]
[Round "5.5"]
[White "Junior, Ednasia"]
[Black "Mongeli, Sasha"]
[Result "1-0"]
[ECO "C54"]
[WhiteElo "1915"]
[BlackElo "1858"]
[Annotator "RC"]
[PlyCount "130"]
[EventDate "2024.03.13"]
[EventCountry "GHA"]
[SourceTitle "playchess.com"]
[Source "ChessBase"]
[SourceQuality "1"]
[TimeControl "5400+30"]

1. e4 {[%emt 0:00:03]} e5 {[%emt 0:15:20]} 2. Bc4 {[%emt 0:00:44]} Nf6 {[%emt 0:05:24]} 3. d3 {[%emt 0:00:07]} Nc6 {[%emt 0:02:31]} 4. Nf3 {[%emt 0:00:51]} Bc5 {[%emt 0:01:57]} 5. c3 {[%emt 0:01:15]} a6 {[%emt 0:00:59]} 6. Bb3 {[%emt 0:02:12]} Ba7 {[%emt 0:02:03]} 7. h3 {[%emt 0:02:26]} h6 {[%emt 0:04:16]} 8. O-O {[%emt 0:01:25]} d6 {[%emt 0:01:06]} 9. Re1 {[%emt 0:01:01]} O-O {[%emt 0:00:36]} 10. Nbd2 {[%emt 0:01:15]} Ne7 {[%emt 0:03:13]} 11. Nh4 {[%emt 0:08:09]} g5 {[%emt 0:09:55]} 12. Qf3 {[%emt 0:02:39]} Kg7 {[%emt 0:01:19]} 13. Nf5+ {[%emt 0:03:08]} Bxf5 {[%emt 0:05:12]} 14. exf5 {[%emt 0:00:13]} Qd7 {[%emt 0:05:57]} 15. g4 {[%emt 0:02:00]} Qc6 {[%emt 0:02:39]} 16. Ne4 {[%emt 0:07:34]} Nxe4 {[%emt 0:03:36]} 17. dxe4 {[%emt 0:02:16]} f6 {[%emt 0:03:25]} 18. h4 {[%emt 0:06:46]} Rad8 {[%emt 0:07:47]} 19. Rd1 {[%emt 0:05:24]} Bc5 {[%emt 0:05:07]} 20. Kg2 {[%emt 0:01:46]} b5 {[%emt 0:00:41]} 21. Be6 {[%emt 0:04:20]} Qb7 {[%emt 0:03:36]} 22. Bd2 {[%emt 0:09:22]} c6 {[%emt 0:07:11]} 23. Rh1 {[%emt 0:05:21]} d5 {[%emt 0:00:55]} 24. Rad1 {[%emt 0:08:50]} dxe4 {[%emt 0:00:58]} 25. Qxe4 {[%emt 0:00:18]} Nd5 {[%emt 0:03:13]} 26. hxg5 {[%emt 0:01:26]} hxg5 {[%emt 0:02:15]} 27. Bxg5 {[%emt 0:03:39]} Rh8 {[%emt 0:01:34]} 28. Bc1 {[%emt 0:06:51]} Rxh1 {[%emt 0:00:25]} 29. Rxh1 {[%emt 0:00:43]} Rh8 {[%emt 0:00:09]} 30. Rxh8 {[%emt 0:03:00]} Kxh8 {[%emt 0:00:05]} 31. g5 {[%emt 0:01:43]} Qh7 {[%emt 0:01:04]} 32. Bxd5 {[%emt 0:02:30]} cxd5 {[%emt 0:00:23]} 33. Qxd5 {[%emt 0:01:38]} Qxf5 {[%emt 0:00:29]} 34. Qf3 {[%emt 0:04:17]} Qxf3+ {[%emt 0:01:28]} 35. Kxf3 {[%emt 0:00:02]} Kg7 {[%emt 0:00:09]} 36. gxf6+ {[%emt 0:01:26]} Kxf6 {[%emt 0:00:04]} 37. Be3 {[%emt 0:00:27]} Be7 {[%emt 0:00:25]} 38. Ke4 {[%emt 0:00:03]} Ke6 {[%emt 0:00:07]} 39. b3 {[%emt 0:00:43]} Bh4 {[%emt 0:00:51]} 40. f3 {[%emt 0:00:22]} Be7 {[%emt 0:00:12]} 41. Bd2 {[%emt 0:00:43]} Bh4 {[%emt 0:00:37]} 42. c4 {[%emt 0:00:34]} bxc4 {[%emt 0:00:40]} 43. bxc4 {[%emt 0:00:01]} Be7 {[%emt 0:00:15]} 44. Ba5 {[%emt 0:00:30]} Bh4 {[%emt 0:00:00]} 45. c5 {[%emt 0:00:00]} Bg3 {[%emt 0:00:00]} 46. c6 {[%emt 0:00:00]} Kd6 {[%emt 0:00:00]} 47. c7 {[%emt 0:00:00]} Kd7 {[%emt 0:00:00]} 48. Bc3 {[%emt 0:00:00]} Bf2 {[%emt 0:02:05]} 49. Bxe5 {[%emt 0:00:00]} a5 {[%emt 0:01:08]} 50. a4 {[%emt 0:00:00]} Bc5 {[%emt 0:00:43]} 51. Kd5 {[%emt 0:00:00]} Bb4 {[%emt 0:00:24]} 52. f4 {[%emt 0:00:00]} Bd2 {[%emt 0:00:37]} 53. f5 {[%emt 0:00:00]} Bb4 {[%emt 0:00:13]} 54. Kc4 {[%emt 0:00:00]} Kc8 {[%emt 0:00:27]} 55. Kb5 {[%emt 0:00:00]} Kb7 {[%emt 0:00:08]} 56. f6 {[%emt 0:00:00]} Kc8 {[%emt 0:01:51]} 57. Kb6 {[%emt 0:00:00]} Bd2 {[%emt 0:00:32]} 58. f7 {[%emt 0:00:00]} Be3+ {[%emt 0:00:32]} 59. Kxa5 {[%emt 0:00:00]} Bh6 {[%emt 0:00:17]} 60. Bd6 {[%emt 0:00:00]} Kb7 {[%emt 0:00:23]} 61. Kb5 {[%emt 0:00:00]} Bg7 {[%emt 0:00:56]} 62. a5 {[%emt 0:00:00]} Bh6 {[%emt 0:00:34]} 63. a6+ {[%emt 0:00:00]} Kc8 {[%emt 0:00:22]} 64. Kc6 {[%emt 0:00:00]} Bf8 {[%emt 0:00:26]} 65. a7 {[%emt 0:00:00]} Bxd6 {[%emt 0:00:07]} 1-0

[Event "African Individual Chess-ch Women 2024"]
[Site "Accra"]
[Date "2024.03.17"]
[Round "5.6"]
[White "Shaba, Linda Dalitso"]
[Black "Laubscher, Anzel"]
[Result "1/2-1/2"]
[ECO "E05"]
[WhiteElo "1836"]
[BlackElo "1820"]
[Annotator "NA RC"]
[PlyCount "71"]
[EventDate "2024.03.13"]
[EventCountry "GHA"]
[SourceTitle "playchess.com"]
[Source "ChessBase"]
[SourceQuality "1"]
[TimeControl "5400+30"]

1. d4 {[%emt 0:00:30]} d5 {[%emt 0:00:46]} 2. Nf3 {[%emt 0:00:11]} Nf6 {[%emt 0:00:06]} 3. g3 {[%emt 0:00:13]} e6 {[%emt 0:00:14]} 4. Bg2 {[%emt 0:00:08]} Be7 {[%emt 0:00:10]} 5. O-O {[%emt 0:00:09]} O-O {[%emt 0:00:22]} 6. c4 {[%emt 0:00:08]} dxc4 {[%emt 0:00:04]} 7. Ne5 {[%emt 0:00:14]} Nc6 {[%emt 0:00:43]} 8. Nxc6 {[%emt 0:00:31]} bxc6 {[%emt 0:00:04]} 9. Bxc6 {[%emt 0:00:07]} Rb8 {[%emt 0:00:08]} 10. Nc3 {[%emt 0:04:33]} Bb7 {[%emt 0:05:27]} 11. Bxb7 {[%emt 0:00:38]} Rxb7 {[%emt 0:00:09]} 12. Rb1 {[%emt 0:02:53]} Nd5 {[%emt 0:06:32]} 13. Bd2 {[%emt 0:09:40]} Qd7 {[%emt 0:12:23]} 14. Nxd5 {[%emt 0:15:13]} exd5 {[%emt 0:03:12]} 15. Qc2 {[%emt 0:02:46]} Rfb8 {[%emt 0:02:42]} 16. b3 {[%emt 0:08:21]} cxb3 {[%emt 0:04:12]} 17. Rxb3 {[%emt 0:00:09]} Rxb3 {[%emt 0:00:35]} 18. axb3 {[%emt 0:00:07]} Bd6 {[%emt 0:02:08]} 19. Ra1 {[%emt 0:05:58]} Rb7 {[%emt 0:06:35]} 20. Ra5 {[%emt 0:06:29]} c6 {[%emt 0:03:29]} 21. Ra6 {[%emt 0:12:14]} Rb6 {[%emt 0:03:06]} 22. Qa2 {[%emt 0:03:04]} Rxa6 {[%emt 0:02:39]} 23. Qxa6 {[%emt 0:00:07]} h5 {[%emt 0:03:12]} 24. Kg2 {[%emt 0:02:15]} h4 {[%emt 0:05:43]} 25. Qd3 {[%emt 0:08:18]} Qe6 {[%emt 0:09:08]} 26. f3 {[%emt 0:04:00]} hxg3 {[%emt 0:04:01]} 27. hxg3 {[%emt 0:00:04]} c5 {[%emt 0:04:27]} 28. dxc5 {[%emt 0:01:00]} Bxc5 {[%emt 0:00:33]} 29. Be1 {[%emt 0:04:53]} d4 {[%emt 0:08:20]} 30. Bf2 {[%emt 0:03:31]} f5 {[%emt 0:02:37]} 31. Qc2 {[%emt 0:01:59]} Bb6 {[%emt 0:00:42]} 32. Qd3 {[%emt 0:00:02]} g6 {[%emt 0:03:42]} 33. Qc2 {[%emt 0:00:22]} Kf7 {[%emt 0:01:49]} 34. Qd3 {[%emt 0:00:26]} Kg8 {[%emt 0:03:01]} 35. Qc2 {[%emt 0:02:21]} Kf7 {[%emt 0:00:09]} 36. Qd3 {[%emt 0:00:01]} 1/2-1/2